Workbook

Sheet Документ (1)
G1: УТВЕРЖДЕНО
G2: Начальник Финансового управления администрации города Фокино
G3: _______________________ Шеремето А.Т.
G4: Приказ № 82 от "20" декабря 2013 г.
A5: АНАЛИЗ ИСПОЛНЕНИЯ СВОДНОЙ БЮДЖЕТНОЙ РОСПИСИ БЮДЖЕТА ГОРОДСКОГО ОКРУГА "ГОРОД ФОКИНО" (РАСХОДЫ) на 01.02.2014г.
G6: руб.
A7: Документ, учреждение | B7: Вед. | C7: Разд. | D7: Ц.ст. | E7: Расх. | F7: Эк.класс. | G7: Утверждено на 2014 год | H7: Исполнено на 01.02.2014г. | I7: % исполнения
A8: Совет народных депутатов города Фокино | B8: 001 | C8: 0000 | D8: 0000000 | E8: 000 | F8: 000 | G8: =G9 -> 1628911 | H8: =H9 -> 29398 | I8: =H8/G8*100 -> 1.804764042
A9: ОБЩЕГОСУДАРСТВЕННЫЕ ВОПРОСЫ | B9: 001 | C9: 0100 | D9: 0000000 | E9: 000 | F9: 000 | G9: =G10 -> 1628911 | H9: =H10 -> 29398 | I9: =H9/G9*100 -> 1.804764042
A10: Функционирование законодательных (представительных) органов государственной власти и представительных органов муниципальных образований | B10: 001 | C10: 0103 | D10: 0000000 | E10: 000 | F10: 000 | G10: =G11+G15 -> 1628911 | H10: =H11+H15 -> 29398 | I10: 1.804764042
A11: Обеспечение деятельности главы законодательного (представительного) органа муниципального образования | B11: 001 | C11: 0103 | D11: 7001004 | E11: 000 | F11: 000 | G11: =G12 -> 928413 | H11: =H12 -> 20913 | I11: 2.252553551
A12: Расходы на выплаты персоналу государственных (муниципальных) органов | B12: 001 | C12: 0103 | D12: 7001004 | E12: 120 | F12: 000 | G12: =G13+G14 -> 928413 | H12: =H13+H14 -> 20913 | I12: 2.252553551
A13: Заработная плата | B13: 001 | C13: 0103 | D13: 7001004 | E13: 120 | F13: 211 | G13: 713066 | H13: 20000 | I13: 2.804789458
A14: Начисления на выплаты по оплате труда | B14: 001 | C14: 0103 | D14: 7001004 | E14: 120 | F14: 213 | G14: 215347 | H14: 913 | I14: 0.4239668999
A15: Обеспечение деятельности законодательного (представительного) органа муниципального образования | B15: 001 | C15: 0103 | D15: 7001005 | E15: 000 | F15: 000 | G15: =G16+G19+G23 -> 700498 | H15: =H16+H19+H23 -> 8485 | I15: 1.211281117
A16: Расходы на выплаты персоналу государственных (муниципальных) органов | B16: 001 | C16: 0103 | D16: 7001005 | E16: 120 | F16: 000 | G16: =G17+G18 -> 512000 | H16: =H17+H18 -> 7485 | I16: 1.461914062
A17: Заработная плата | B17: 001 | C17: 0103 | D17: 7001005 | E17: 120 | F17: 211 | G17: 392000 | H17: 5000 | I17: 1.275510204
A18: Начисления на выплаты по оплате труда | B18: 001 | C18: 0103 | D18: 7001005 | E18: 120 | F18: 213 | G18: 120000 | H18: 2485 | I18: 2.070833333
A19: Иные закупки товаров, работ и услуг для государственных(муниципальных) нужд | B19: 001 | C19: 0103 | D19: 7001005 | E19: 240 | F19: 000 | G19: =G20+G21+G22 -> 188298 | H19: =H20+H21+H22 -> 1000 | I19: 0.5310730863
A20: Услуги связи | B20: 001 | C20: 0103 | D20: 7001005 | E20: 240 | F20: 221 | G20: 12000 | H20: 1000 | I20: 8.333333333
A21: Прочие работы, услуги | B21: 001 | C21: 0103 | D21: 7001005 | E21: 240 | F21: 226 | G21: 150298 | H21: 0 | I21: 0
A22: Увеличение стоимости материальных запасов | B22: 001 | C22: 0103 | D22: 7001005 | E22: 240 | F22: 340 | G22: 26000 | H22: 0 | I22: 0
A23: Уплата прочих налогов, сборов и иных платежей | B23: 001 | C23: 0103 | D23: 7001005 | E23: 852 | F23: 000 | G23: =G24 -> 200 | H23: =H24 -> 0 | I23: 0
A24: Прочие расходы | B24: 001 | C24: 0103 | D24: 7001005 | E24: 852 | F24: 290 | G24: 200 | H24: 0 | I24: 0
A25: Администрация города Фокино | B25: 002 | C25: 0000 | D25: 0000000 | E25: 000 | F25: 000 | G25: =G26+G71+G77+G98+G125+G147+G155+G196+G201 -> 141406244 | H25: =H26+H71+H77+H98+H125+H147+H155+H196+H201 -> 6675141.97 | I25: 4.720542588
A26: ОБЩЕГОСУДАРСТВЕННЫЕ ВОПРОСЫ | B26: 002 | C26: 0100 | D26: 0000000 | E26: 000 | F26: 000 | G26: =G27+G48+G52+G56 -> 11210237 | H26: =H27+H48+H52+H56 -> 285688.27 | I26: 2.548458788
A27: Функционирование Правительства Российской Федерации, высших исполнительных органов государственной власти субъектов Российской Федерации, местных администраций | B27: 002 | C27: 0104 | D27: 0000000 | E27: 000 | F27: 000 | G27: =G28+G32 -> 9821037 | H27: =H28+H32 -> 281049 | I27: 2.861703912
A28: Обеспечение деятельности главы исполнительно-распорядительного органа муниципального образования | B28: 002 | C28: 0104 | D28: 0211001 | E28: 000 | F28: 000 | G28: =G29 -> 998029 | H28: =H29 -> 26514.96 | I28: 2.65673242
A29: Расходы на выплаты персоналу государственных (муниципальных) органов | B29: 002 | C29: 0104 | D29: 0211001 | E29: 120 | F29: 000 | G29: =G30+G31 -> 998029 | H29: =H30+H31 -> 26514.96 | I29: 2.65673242
A30: Заработная плата | B30: 002 | C30: 0104 | D30: 0211001 | E30: 120 | F30: 211 | G30: 766536 | H30: 15253.65 | I30: 1.989945678
A31: Начисления на выплаты по оплате труда | B31: 002 | C31: 0104 | D31: 0211001 | E31: 120 | F31: 213 | G31: 231493 | H31: 11261.31 | I31: 4.864643855
A32: Руководство и управление в сфере установленных функций органов местного самоуправления | B32: 002 | C32: 0104 | D32: 0211010 | E32: 000 | F32: 000 | G32: =G33+G37+G44+G46 -> 8823008 | H32: =H33+H37+H44+H46 -> 254534.04 | I32: 2.884889598
A33: Расходы на выплаты персоналу государственных (муниципальных) органов | B33: 002 | C33: 0104 | D33: 0211010 | E33: 120 | F33: 000 | G33: =G34+G35+G36 -> 7158690 | H33: =H34+H35+H36 -> 158805.86 | I33: 2.218364813
A34: Заработная плата | B34: 002 | C34: 0104 | D34: 0211010 | E34: 120 | F34: 211 | G34: 5495000 | H34: 158805.86 | I34: 2.890006551
A35: Прочие выплаты | B35: 002 | C35: 0104 | D35: 0211010 | E35: 120 | F35: 212 | G35: 4200 | H35: 0 | I35: 0
A36: Начисления на выплаты по оплате труда | B36: 002 | C36: 0104 | D36: 0211010 | E36: 120 | F36: 213 | G36: 1659490 | H36: 0 | I36: 0
A37: Иные закупки товаров, работ и услуг для государственных(муниципальных) нужд | B37: 002 | C37: 0104 | D37: 0211010 | E37: 240 | F37: 000 | G37: =G38+G39+G40+G41+G42+G43 -> 1544418 | H37: =H38+H39+H40+H41+H42+H43 -> 95728.18 | I37: 6.198333612
A38: Услуги связи | B38: 002 | C38: 0104 | D38: 0211010 | E38: 240 | F38: 221 | G38: 231000 | H38: 20659.07 | I38: 8.943320346
A39: Коммунальные услуги | B39: 002 | C39: 0104 | D39: 0211010 | E39: 240 | F39: 223 | G39: 832000 | H39: 54436.11 | I39: 6.542801683
A40: Работы, услуги по содержанию имущества | B40: 002 | C40: 0104 | D40: 0211010 | E40: 240 | F40: 225 | G40: 90000 | H40: 0 | I40: 0
A41: Прочие работы, услуги | B41: 002 | C41: 0104 | D41: 0211010 | E41: 240 | F41: 226 | G41: 110000 | H41: 0 | I41: 0
A42: Прочие расходы | B42: 002 | C42: 0104 | D42: 0211010 | E42: 240 | F42: 290 | G42: 3517 | H42: 0 | I42: 0
A43: Увеличение стоимости материальных запасов | B43: 002 | C43: 0104 | D43: 0211010 | E43: 240 | F43: 340 | G43: 277901 | H43: 20633 | I43: 7.424586453
A44: Уплата налога на имущество организаций и земельного налога | B44: 002 | C44: 0104 | D44: 0211010 | E44: 851 | F44: 000 | G44: =G45 -> 84700 | H44: =H45 -> 0 | I44: 0
A45: Прочие расходы | B45: 002 | C45: 0104 | D45: 0211010 | E45: 851 | F45: 290 | G45: 84700 | H45: 0 | I45: 0
A46: Уплата прочих налогов, сборов и иных платежей | B46: 002 | C46: 0104 | D46: 0211010 | E46: 852 | F46: 000 | G46: =G47 -> 35200 | H46: =H47 -> 0 | I46: 0
A47: Прочие расходы | B47: 002 | C47: 0104 | D47: 0211010 | E47: 852 | F47: 290 | G47: 35200 | H47: 0 | I47: 0
A48: Обеспечение проведения выборов и референдумов | B48: 002 | C48: 0107 | D48: 0000000 | E48: 000 | F48: 000 | G48: =G49 -> 100000 | H48: 0 | I48: 0
A49: Организация и проведение выборов и референдумов | B49: 002 | C49: 0107 | D49: 7001011 | E49: 000 | F49: 000 | G49: 100000 | H49: 0 | I49: 0
A50: Специальные расходы | B50: 002 | C50: 0107 | D50: 7001011 | E50: 880 | F50: 000 | G50: 100000 | H50: 0 | I50: 0
A51: Прочие расходы | B51: 002 | C51: 0107 | D51: 7001011 | E51: 880 | F51: 290 | G51: 100000 | H51: 0 | I51: 0
A52: Резервные фонды | B52: 002 | C52: 0111 | D52: 0000000 | E52: 000 | F52: 000 | G52: =G53 -> 750000 | H52: 0 | I52: 0
A53: Резервные фонды местных администраций | B53: 002 | C53: 0111 | D53: 7001012 | E53: 000 | F53: 000 | G53: 750000 | H53: 0 | I53: 0
A54: Резервные средства | B54: 002 | C54: 0111 | D54: 7001012 | E54: 870 | F54: 000 | G54: 750000 | H54: 0 | I54: 0
A55: Прочие расходы | B55: 002 | C55: 0111 | D55: 7001012 | E55: 870 | F55: 290 | G55: 750000 | H55: 0 | I55: 0
A56: Другие общегосударственные вопросы | B56: 002 | C56: 0113 | D56: 0000000 | E56: 000 | F56: 000 | G56: =G57+G64+G68 -> 539200 | H56: =H57+H64+H68 -> 4639.27 | I56: 0.8603987389
A57: Обеспечение деятельности по профилактике безнадзорности и правонарушений несовершеннолетних, административных комиссий и определения перечня должностных лиц органов местного самоуправления, уполномоченных составлять протоколы об административных правонарушениях | B57: 002 | C57: 0113 | D57: 0211202 | E57: 000 | F57: 000 | G57: =G58+G61 -> 329200 | H57: =H58+H61 -> 4639.27 | I57: 1.409255772
A58: Расходы на выплаты персоналу государственных (муниципальных) органов | B58: 002 | C58: 0113 | D58: 0211202 | E58: 120 | F58: 000 | G58: =G59+G60 -> 285399 | H58: =H59+H60 -> 4000 | I58: 1.401546607
A59: Заработная плата | B59: 002 | C59: 0113 | D59: 0211202 | E59: 120 | F59: 211 | G59: 219200 | H59: 4000 | I59: 1.824817518
A60: Начисления на выплаты по оплате труда | B60: 002 | C60: 0113 | D60: 0211202 | E60: 120 | F60: 213 | G60: 66199 | H60: 0 | I60: 0
A61: Иные закупки товаров, работ и услуг для государственных(муниципальных) нужд | B61: 002 | C61: 0113 | D61: 0211202 | E61: 240 | F61: 000 | G61: =G62+G63 -> 43801 | H61: =H62+H63 -> 639.27 | I61: 1.459487226
A62: Услуги связи | B62: 002 | C62: 0113 | D62: 0211202 | E62: 240 | F62: 221 | G62: 15000 | H62: 639.27 | I62: 4.2618
A63: Увеличение стоимости материальных запасов | B63: 002 | C63: 0113 | D63: 0211202 | E63: 240 | F63: 340 | G63: 28801 | H63: 0 | I63: 0
A64: Возмещение морального вреда по решению суда | B64: 002 | C64: 0113 | D64: 0218008 | E64: 000 | F64: 000 | G64: =G65 -> 110000 | H64: =H65 -> 0 | I64: 0
A65: Исполнение судебных актов и мировых соглашений | B65: 002 | C65: 0113 | D65: 0218008 | E65: 830 | F65: 000 | G65: =G66+G67 -> 110000 | H65: =H66+H67 -> 0 | I65: 0
A66: Работы, услуги по содержанию имущества | B66: 002 | C66: 0113 | D66: 0218008 | E66: 830 | F66: 225 | G66: 96654 | H66: 0 | I66: 0
A67: Прочие расходы | B67: 002 | C67: 0113 | D67: 0218008 | E67: 830 | F67: 290 | G67: 13346 | H67: 0 | I67: 0
A68: Мероприятия в сфере информационного обеспечения | B68: 002 | C68: 0113 | D68: 0228002 | E68: 000 | F68: 000 | G68: =G69 -> 100000 | H68: =H69 -> 0 | I68: 0
A69: Иные закупки товаров, работ и услуг для государственных(муниципальных) нужд | B69: 002 | C69: 0113 | D69: 0228002 | E69: 240 | F69: 000 | G69: =G70 -> 100000 | H69: =H70 -> 0 | I69: 0
A70: Работы, услуги по содержанию имущества | B70: 002 | C70: 0113 | D70: 0228002 | E70: 240 | F70: 225 | G70: 100000 | H70: 0 | I70: 0
A71: НАЦИОНАЛЬНАЯ ОБОРОНА | B71: 002 | C71: 0200 | D71: 0000000 | E71: 000 | F71: 000 | G71: =G72 -> 393837 | H71: 0 | I71: 0
A72: Мобилизационная и вневойсковая подготовка | B72: 002 | C72: 0203 | D72: 0000000 | E72: 000 | F72: 000 | G72: 393837 | H72: 0 | I72: 0
A73: Осуществление первичного воинского учета на территориях, где отсутствуют военные комиссариаты | B73: 002 | C73: 0203 | D73: 0211206 | E73: 000 | F73: 000 | G73: 393837 | H73: 0 | I73: =H73/G73*100 -> 0
A74: Расходы на выплаты персоналу государственных (муниципальных) органов | B74: 002 | C74: 0203 | D74: 0211206 | E74: 120 | F74: 000 | G74: =G75+G76 -> 393837 | H74: =H75+H76 -> 0 | I74: 0
A75: Заработная плата | B75: 002 | C75: 0203 | D75: 0211206 | E75: 120 | F75: 211 | G75: 302486 | H75: 0 | I75: 0
A76: Начисления на выплаты по оплате труда | B76: 002 | C76: 0203 | D76: 0211206 | E76: 120 | F76: 213 | G76: 91351 | H76: 0 | I76: 0
A77: НАЦИОНАЛЬНАЯ ЭКОНОМИКА | B77: 002 | C77: 0400 | D77: 0000000 | E77: 000 | F77: 000 | G77: =G78+G82+G86+G90 -> 6321151 | H77: =H78+H82+H86+H90 -> 4000 | I77: 0.06327961474
A78: Общеэкономические вопросы | B78: 002 | C78: 0401 | D78: 0000000 | E78: 000 | F78: 000 | G78: =G79 -> 22000 | H78: 0 | I78: 0
A79: Мероприятия по профилактике безнадзорности и правонарушений несовершеннолетних | B79: 002 | C79: 0401 | D79: 0278004 | E79: 000 | F79: 000 | G79: 22000 | H79: 0 | I79: 0
A80: Субсидии бюджетным учреждениям на иные цели | B80: 002 | C80: 0401 | D80: 0278004 | E80: 612 | F80: 000 | G80: 22000 | H80: 0 | I80: 0
A81: Безвозмездные перечисления государственным и муниципальным организациям | B81: 002 | C81: 0401 | D81: 0278004 | E81: 612 | F81: 241 | G81: 22000 | H81: 0 | I81: 0
A82: Транспорт | B82: 002 | C82: 0408 | D82: 0000000 | E82: 000 | F82: 000 | G82: =G83 -> 960000 | H82: 0 | I82: 0
A83: Компенсация транспортным организациям части потерь в доходах, возникающих в результате государственного регулирования тарифов на перевозку пассажиров автомобильным пассажирским транспортом в пригородном сообщении | B83: 002 | C83: 0408 | D83: 0211842 | E83: 000 | F83: 000 | G83: 960000 | H83: 0 | I83: 0
A84: Субсидии юридическим лицам (кроме некомерческих организаций), индивидуальным предпринимателям и физическим лицам | B84: 002 | C84: 0408 | D84: 0211842 | E84: 810 | F84: 000 | G84: 960000 | H84: 0 | I84: 0
A85: Безвозмездные перечисления организациям , за исключением государственных и муниципальных | B85: 002 | C85: 0408 | D85: 0211842 | E85: 810 | F85: 242 | G85: 960000 | H85: 0 | I85: 0
A86: Дорожное хозяйство (дорожные фонды) | B86: 002 | C86: 0409 | D86: 0000000 | E86: 000 | F86: 000 | G86: =G87 -> 5171651 | H86: 0 | I86: 0
A87: Обеспечение сохранности автомобильных дорог местного значения и условий безопасности движения по ним | B87: 002 | C87: 0409 | D87: 0237201 | E87: 000 | F87: 000 | G87: 5171651 | H87: 0 | I87: 0
A88: Иные закупки товаров, работ и услуг для государственных(муниципальных) нужд | B88: 002 | C88: 0409 | D88: 0237201 | E88: 240 | F88: 000 | G88: 5171651 | H88: 0 | I88: 0
A89: Работы, услуги по содержанию имущества | B89: 002 | C89: 0409 | D89: 0237201 | E89: 240 | F89: 225 | G89: 5171651 | H89: 0 | I89: 0
A90: Другие вопросы в области национальной экономики | B90: 002 | C90: 0412 | D90: 0000000 | E90: 000 | F90: 000 | G90: =G91+G95 -> 167500 | H90: =H91+H95 -> 4000 | I90: 2.388059701
A91: Организация и осуществление деятельности в сфере охраны труда | B91: 002 | C91: 0412 | D91: 0211790 | E91: 000 | F91: 000 | G91: =G92 -> 164500 | H91: =H92 -> 4000 | I91: 2.431610942
A92: Расходы на выплаты персоналу государственных (муниципальных) органов | B92: 002 | C92: 0412 | D92: 0211790 | E92: 120 | F92: 000 | G92: =G93+G94 -> 164500 | H92: =H93+H94 -> 4000 | I92: 2.431610942
A93: Заработная плата | B93: 002 | C93: 0412 | D93: 0211790 | E93: 120 | F93: 211 | G93: 126344 | H93: 4000 | I93: 3.165959602
A94: Начисления на выплаты по оплате труда | B94: 002 | C94: 0412 | D94: 0211790 | E94: 120 | F94: 213 | G94: 38156 | H94: 0 | I94: 0
A95: Поддержка малого и среднего предпринимательства | B95: 002 | C95: 0412 | D95: 0211863 | E95: 000 | F95: 000 | G95: =G96 -> 3000 | H95: =H96 -> 0 | I95: 0
A96: Иные закупки товаров, работ и услуг для государственных(муниципальных) нужд | B96: 002 | C96: 0412 | D96: 0211863 | E96: 240 | F96: 000 | G96: =G97 -> 3000 | H96: =H97 -> 0 | I96: 0
A97: Увеличение стоимости материальных запасов | B97: 002 | C97: 0412 | D97: 0211863 | E97: 240 | F97: 340 | G97: 3000 | H97: 0 | I97: 0
A98: ЖИЛИЩНО-КОММУНАЛЬНОЕ ХОЗЯЙСТВО | B98: 002 | C98: 0500 | D98: 0000000 | E98: 000 | F98: 000 | G98: =G99+G112 -> 5874900 | H98: =H99+H112 -> 258830.41 | I98: 4.405698991
A99: Коммунальное хозяйство | B99: 002 | C99: 0502 | D99: 0000000 | E99: 000 | F99: 000 | G99: =G100+G103+G106+G109 -> 1784000 | H99: =H100+H103+H106+H109 -> 90500 | I99: 5.072869955
A100: Повышение энергетической эффективности и обеспечение энергосбережения | B100: 002 | C100: 0502 | D100: 0241128 | E100: 000 | F100: 000 | G100: =G101 -> 390000 | H100: =H101 -> 0 | I100: 0
A101: Иные закупки товаров, работ и услуг для государственных(муниципальных) нужд | B101: 002 | C101: 0502 | D101: 0241128 | E101: 240 | F101: 000 | G101: =G102 -> 390000 | H101: =H102 -> 0 | I101: 0
A102: Работы, услуги по содержанию имущества | B102: 002 | C102: 0502 | D102: 0241128 | E102: 240 | F102: 225 | G102: 390000 | H102: 0 | I102: 0
A103: Строительство, архитектура и дорожное хозяйство Брянской области (2014-2020 годы) ПП "Развитие социальной и инженерной инфраструктуры Брянскрй области" Софинансирование объектов капитальных вложений муниципальной собственности | B103: 002 | C103: 0502 | D103: 0251127 | E103: 000 | F103: 000 | G103: =G104 -> 500000 | H103: =H104 -> 0 | I103: 0
A104: Бюджетные инвестиции в объекты капитального строительства государственной (муниципальной) собственности | B104: 002 | C104: 0502 | D104: 0251127 | E104: 414 | F104: 000 | G104: =G105 -> 500000 | H104: =H105 -> 0 | I104: 0
A105: Увеличение стоимости основных средств | B105: 002 | C105: 0502 | D105: 0251127 | E105: 414 | F105: 310 | G105: 500000 | H105: 0 | I105: 0
A106: Прочие мероприятия по благоустройству | B106: 002 | C106: 0502 | D106: 0257005 | E106: 000 | F106: 000 | G106: =G107 -> 0 | H106: =H107 -> 0
A107: Иные закупки товаров, работ и услуг для государственных(муниципальных) нужд | B107: 002 | C107: 0502 | D107: 0257005 | E107: 240 | F107: 000 | G107: =G108 -> 0 | H107: =H108 -> 0
A108: Работы, услуги по содержанию имущества | B108: 002 | C108: 0502 | D108: 0257005 | E108: 240 | F108: 225 | G108: 0 | H108: 0
A109: Мероприятия в области коммунального хозяйства | B109: 002 | C109: 0502 | D109: 0257009 | E109: 000 | F109: 000 | G109: =G110 -> 894000 | H109: =H110 -> 90500 | I109: 10.12304251
A110: Субсидии юридическим лицам (кроме некомерческих организаций), индивидуальным предпринимателям и физическим лицам | B110: 002 | C110: 0502 | D110: 0257009 | E110: 810 | F110: 000 | G110: =G111 -> 894000 | H110: =H111 -> 90500 | I110: 10.12304251
A111: Безвозмездные перечисления государственным и муниципальным организациям | B111: 002 | C111: 0502 | D111: 0257009 | E111: 810 | F111: 241 | G111: 894000 | H111: 90500 | I111: 10.12304251
A112: Благоустройство | B112: 002 | C112: 0503 | D112: 0000000 | E112: 000 | F112: 000 | G112: =G113+G116+G119+G122 -> 4090900 | H112: =H113+H116+H119+H122 -> 168330.41 | I112: 4.114752499
A113: Повышение энергетической эффективности и обеспечение энергосбережения | B113: 002 | C113: 0503 | D113: 0241128 | E113: 000 | F113: 000 | G113: =G114 -> 447900 | H113: =H114 -> 0 | I113: 0
A114: Иные закупки товаров, работ и услуг для государственных(муниципальных) нужд | B114: 002 | C114: 0503 | D114: 0241128 | E114: 240 | F114: 000 | G114: =G115 -> 447900 | H114: =H115 -> 0 | I114: 0
A115: Работы, услуги по содержанию имущества | B115: 002 | C115: 0503 | D115: 0241128 | E115: 240 | F115: 225 | G115: 447900 | H115: 0 | I115: 0
A116: Уличное освещение | B116: 002 | C116: 0503 | D116: 0257001 | E116: 000 | F116: 000 | G116: =G117 -> 1933000 | H116: =H117 -> 150830.41 | I116: 7.802918262
A117: Иные закупки товаров, работ и услуг для государственных(муниципальных) нужд | B117: 002 | C117: 0503 | D117: 0257001 | E117: 240 | F117: 000 | G117: =G118 -> 1933000 | H117: =H118 -> 150830.41 | I117: 7.802918262
A118: Коммунальные услуги | B118: 002 | C118: 0503 | D118: 0257001 | E118: 240 | F118: 223 | G118: 1933000 | H118: 150830.41 | I118: 7.802918262
A119: Организация и содержание мест захоронения | B119: 002 | C119: 0503 | D119: 0257003 | E119: 000 | F119: 000 | G119: =G120 -> 210000 | H119: =H120 -> 17500 | I119: 8.333333333
A120: Субсидии юридическим лицам (кроме некомерческих организаций), индивидуальным предпринимателям и физическим лицам | B120: 002 | C120: 0503 | D120: 0257003 | E120: 810 | F120: 000 | G120: =G121 -> 210000 | H120: =H121 -> 17500 | I120: 8.333333333
A121: Безвозмездные перечисления государственным и муниципальным организациям | B121: 002 | C121: 0503 | D121: 0257003 | E121: 810 | F121: 241 | G121: 210000 | H121: 17500 | I121: 8.333333333
A122: Прочие мероприятия по благоустройству | B122: 002 | C122: 0503 | D122: 0257005 | E122: 000 | F122: 000 | G122: =G123 -> 1500000 | H122: =H123 -> 0 | I122: 0
A123: Иные закупки товаров, работ и услуг для государственных(муниципальных) нужд | B123: 002 | C123: 0503 | D123: 0257005 | E123: 240 | F123: 000 | G123: =G124 -> 1500000 | H123: =H124 -> 0 | I123: 0
A124: Работы, услуги по содержанию имущества | B124: 002 | C124: 0503 | D124: 0257005 | E124: 240 | F124: 225 | G124: 1500000 | H124: 0 | I124: 0
A125: ОБРАЗОВАНИЕ | B125: 002 | C125: 0700 | D125: 0000000 | E125: 000 | F125: 000 | G125: =G126+G133+G143 -> 91524020 | H125: =H126+H133+H143 -> 4194535.38 | I125: 4.582988575
A126: Дошкольное образование | B126: 002 | C126: 0701 | D126: 0000000 | E126: 000 | F126: 000 | G126: =G127+G130 -> 35169541 | H126: =H127+H130 -> 1365825.78 | I126: 3.883547357
A127: Дошкольные образовательные организации | B127: 002 | C127: 0701 | D127: 0261063 | E127: 000 | F127: 000 | G127: =G128 -> 6964000 | H127: =H128 -> 835825.78 | I127: 12.00209334
A128: Субсидии бюджетным учреждениям на финансовое обеспечение государственного(муниципального) задания на оказание государственных (муниципальных) услуг (выполнение работ) | B128: 002 | C128: 0701 | D128: 0261063 | E128: 611 | F128: 000 | G128: =G129 -> 6964000 | H128: =H129 -> 835825.78 | I128: 12.00209334
A129: Безвозмездные перечисления государственным и муниципальным организациям | B129: 002 | C129: 0701 | D129: 0261063 | E129: 611 | F129: 241 | G129: 6964000 | H129: 835825.78 | I129: 12.00209334
A130: Финансовое обеспечение получения дошкольного образования в дошкольных образовательных организациях | B130: 002 | C130: 0701 | D130: 0261471 | E130: 000 | F130: 000 | G130: =G131 -> 28205541 | H130: =H131 -> 530000 | I130: 1.879063408
A131: Субсидии бюджетным учреждениям на финансовое обеспечение государственного(муниципального) задания на оказание государственных (муниципальных) услуг (выполнение работ) | B131: 002 | C131: 0701 | D131: 0261471 | E131: 611 | F131: 000 | G131: =G132 -> 28205541 | H131: =H132 -> 530000 | I131: 1.879063408
A132: Безвозмездные перечисления государственным и муниципальным организациям | B132: 002 | C132: 0701 | D132: 0261471 | E132: 611 | F132: 241 | G132: 28205541 | H132: 530000 | I132: 1.879063408
A133: Общее образование | B133: 002 | C133: 0702 | D133: 0000000 | E133: 000 | F133: 000 | G133: =G134+G137+G140 -> 56344479 | H133: =H134+H137+H140 -> 2828709.6 | I133: 5.020384695
A134: Общеобразовательные организации | B134: 002 | C134: 0702 | D134: 0261064 | E134: 000 | F134: 000 | G134: =G135 -> 11980000 | H134: =H135 -> 1728874.72 | I134: 14.43134157
A135: Субсидии бюджетным учреждениям на финансовое обеспечение государственного(муниципального) задания на оказание государственных (муниципальных) услуг (выполнение работ) | B135: 002 | C135: 0702 | D135: 0261064 | E135: 611 | F135: 000 | G135: =G136 -> 11980000 | H135: =H136 -> 1728874.72 | I135: 14.43134157
A136: Безвозмездные перечисления государственным и муниципальным организациям | B136: 002 | C136: 0702 | D136: 0261064 | E136: 611 | F136: 241 | G136: 11980000 | H136: 1728874.72 | I136: 14.43134157
A137: Обеспечение деятельности подведомственных учреждений | B137: 002 | C137: 0702 | D137: 0261066 | E137: 000 | F137: 000 | G137: =G138 -> 15000000 | H137: =H138 -> 464964.88 | I137: =H137/G137*100 -> 3.099765867
A138: Субсидии бюджетным учреждениям на финансовое обеспечение государственного(муниципального) задания на оказание государственных (муниципальных) услуг (выполнение работ) | B138: 002 | C138: 0702 | D138: 0261066 | E138: 611 | F138: 000 | G138: =G139 -> 15000000 | H138: =H139 -> 464964.88 | I138: 3.099765867
A139: Безвозмездные перечисления государственным и муниципальным организациям | B139: 002 | C139: 0702 | D139: 0261066 | E139: 611 | F139: 241 | G139: 15000000 | H139: 464964.88 | I139: 3.099765867
A140: Финансовое обеспечение деятельности муниципальных общеобразовательных организаций, имеющих государственную аккредитацию негосударственных общеобразовательных организаций в части реализации ими государственного стандарта общего образования | B140: 002 | C140: 0702 | D140: 0261470 | E140: 000 | F140: 000 | G140: =G141 -> 29364479 | H140: =H141 -> 634870 | I140: 2.162033932
A141: Субсидии бюджетным учреждениям на финансовое обеспечение государственного(муниципального) задания на оказание государственных (муниципальных) услуг (выполнение работ) | B141: 002 | C141: 0702 | D141: 0261470 | E141: 611 | F141: 000 | G141: =G142 -> 29364479 | H141: =H142 -> 634870 | I141: 2.162033932
A142: Безвозмездные перечисления государственным и муниципальным организациям | B142: 002 | C142: 0702 | D142: 0261470 | E142: 611 | F142: 241 | G142: 29364479 | H142: 634870 | I142: 2.162033932
A143: Другие вопросы в области образования | B143: 002 | C143: 0709 | D143: 0000000 | E143: 000 | F143: 000 | G143: =G144 -> 10000 | H143: 0 | I143: 0
A144: Мероприятия по профилактике наркомании населения | B144: 002 | C144: 0709 | D144: 0278005 | E144: 000 | F144: 000 | G144: 10000 | H144: 0 | I144: 0
A145: Субсидии бюджетным учреждениям на иные цели | B145: 002 | C145: 0709 | D145: 0278005 | E145: 612 | F145: 000 | G145: 10000 | H145: 0 | I145: 0
A146: Безвозмездные перечисления государственным и муниципальным организациям | B146: 002 | C146: 0709 | D146: 0278005 | E146: 612 | F146: 241 | G146: 10000 | H146: 0 | I146: 0
A147: КУЛЬТУРА И КИНЕМАТОГРАФИЯ | B147: 002 | C147: 0800 | D147: 0000000 | E147: 000 | F147: 000 | G147: =G148 -> 6533000 | H147: =H148 -> 442200 | I147: 6.768712689
A148: Культура | B148: 002 | C148: 0801 | D148: 0000000 | E148: 000 | F148: 000 | G148: =G149+G152 -> 6533000 | H148: =H149+H152 -> 442200 | I148: 6.768712689
A149: Библиотеки | B149: 002 | C149: 0801 | D149: 0281054 | E149: 000 | F149: 000 | G149: =G150 -> 2033000 | H149: =H150 -> 42200 | I149: 2.075750123
A150: Субсидии бюджетным учреждениям на финансовое обеспечение государственного(муниципального) задания на оказание государственных (муниципальных) услуг (выполнение работ) | B150: 002 | C150: 0801 | D150: 0281054 | E150: 611 | F150: 000 | G150: =G151 -> 2033000 | H150: =H151 -> 42200 | I150: 2.075750123
A151: Безвозмездные перечисления государственным и муниципальным организациям | B151: 002 | C151: 0801 | D151: 0281054 | E151: 611 | F151: 241 | G151: 2033000 | H151: 42200 | I151: 2.075750123
A152: Дворцы и дома культуры | B152: 002 | C152: 0801 | D152: 0281059 | E152: 000 | F152: 000 | G152: =G153 -> 4500000 | H152: =H153 -> 400000 | I152: 8.888888889
A153: Субсидии автономным учреждениям на финансовое обеспечение государственного (муниципального) задания на оказание государственных (муниципальных) услуг (выполнение работ) | B153: 002 | C153: 0801 | D153: 0281059 | E153: 621 | F153: 000 | G153: =G154 -> 4500000 | H153: =H154 -> 400000 | I153: 8.888888889
A154: Безвозмездные перечисления государственным и муниципальным организациям | B154: 002 | C154: 0801 | D154: 0281059 | E154: 621 | F154: 241 | G154: 4500000 | H154: 400000 | I154: 8.888888889
A155: СОЦИАЛЬНАЯ ПОЛИТИКА | B155: 002 | C155: 1000 | D155: 0000000 | E155: 000 | F155: 000 | G155: =G156+G160+G167+G179 -> 6604599 | H155: =H156+H160+H167+H179 -> 281887.91 | I155: 4.268054881
A156: Пенсионное обеспечение | B156: 002 | C156: 1001 | D156: 0000000 | E156: 000 | F156: 000 | G156: =G157 -> 365000 | H156: 23906.6 | I156: 6.549753425
A157: Ежемесячная доплата к пенсии муниципальным служащим | B157: 002 | C157: 1001 | D157: 0271651 | E157: 000 | F157: 000 | G157: 365000 | H157: 23906.6 | I157: 6.549753425
A158: Пособия, компенсации, меры социальной поддержки по публичным нормативным обязательствам | B158: 002 | C158: 1001 | D158: 0271651 | E158: 313 | F158: 000 | G158: 365000 | H158: 23906.6 | I158: 6.549753425
A159: Пенсии, пособия , выплачиваемые организациями сектора гос управления | B159: 002 | C159: 1001 | D159: 0271651 | E159: 313 | F159: 263 | G159: 365000 | H159: 23906.6 | I159: 6.549753425
A160: Социальное обеспечение населения | B160: 002 | C160: 1003 | D160: 0000000 | E160: 000 | F160: 000 | G160: =G161+G164 -> 357174 | H160: =H161+H164 -> 0 | I160: 0
A161: Обеспечение сохранности жилых помещений, закрепленных за детьми - сиротами и детьми, оставшимися без попечения родителей | B161: 002 | C161: 1003 | D161: 0271671 | E161: 000 | F161: 000 | G161: =G162 -> 63000 | H161: =H162 -> 0 | I161: 0
A162: Приобретение товаров, работ, услуг в пользу граждан в целях их социального обеспечения | B162: 002 | C162: 1003 | D162: 0271671 | E162: 323 | F162: 000 | G162: =G163 -> 63000 | H162: =H163 -> 0 | I162: 0
A163: Пособия по социальной помощи населению | B163: 002 | C163: 1003 | D163: 0271671 | E163: 323 | F163: 262 | G163: 63000 | H163: 0 | I163: 0
A164: Мероприятия по обеспечению жильем молодых семей г.Фокино | B164: 002 | C164: 1003 | D164: 0278007 | E164: 000 | F164: 000 | G164: =G165 -> 294174 | H164: =H165 -> 0 | I164: 0
A165: Субсидии гражданам на приобретение жилья | B165: 002 | C165: 1003 | D165: 0278007 | E165: 322 | F165: 000 | G165: =G166 -> 294174 | H165: =H166 -> 0 | I165: 0
A166: Пособия по социальной помощи населению | B166: 002 | C166: 1003 | D166: 0278007 | E166: 322 | F166: 262 | G166: 294174 | H166: 0 | I166: 0
A167: Охрана семьи и детства | B167: 002 | C167: 1004 | D167: 0000000 | E167: 000 | F167: 000 | G167: =G168+G171+G176 -> 5059925 | H167: =H168+H171+H176 -> 246062.97 | I167: 4.862976625
A168: Обеспечение предоставления жилых помещений детям-сиротам и детям, оставшимся без попечения родителей,лицам из их числа по договорам найма специализированных жилых помещений | B168: 002 | C168: 1004 | D168: 0271670 | E168: 000 | F168: 000 | G168: =G169 -> 886050 | H168: =H169 -> 0 | I168: 0
A169: Приобретение товаров, работ, услуг в пользу граждан в целях их социального обеспечения | B169: 002 | C169: 1004 | D169: 0271670 | E169: 323 | F169: 000 | G169: =G170 -> 886050 | H169: =H170 -> 0 | I169: 0
A170: Увеличение стоимости основных средств | B170: 002 | C170: 1004 | D170: 0271670 | E170: 323 | F170: 310 | G170: 886050 | H170: 0 | I170: 0
A171: Организация и осуществление деятельности по опеке и попечительству, выплата ежемесячных денежных средств на содержание и проезд ребенка, переданного на воспитание в семью опекуна (попечителя), приемную семью, вознаграждения приемным родителям | B171: 002 | C171: 1004 | D171: 0271672 | E171: 000 | F171: 000 | G171: =G172+G174 -> 4000165 | H171: =H172+H174 -> 246062.97 | I171: 6.151320508
A172: Иные закупки товаров, работ и услуг для государственных(муниципальных) нужд | B172: 002 | C172: 1004 | D172: 0271672 | E172: 240 | F172: 000 | G172: =G173 -> 850855 | H172: =H173 -> 27831.97 | I172: 3.271059111
A173: Прочие работы, услуги | B173: 002 | C173: 1004 | D173: 0271672 | E173: 240 | F173: 226 | G173: 850855 | H173: 27831.97 | I173: 3.271059111
A174: Пособия, компенсации, меры социальной поддержки по публичным нормативным обязательствам | B174: 002 | C174: 1004 | D174: 0271672 | E174: 313 | F174: 000 | G174: =G175 -> 3149310 | H174: =H175 -> 218231 | I174: 6.929486141
A175: Пособия по социальной помощи населению | B175: 002 | C175: 1004 | D175: 0271672 | E175: 313 | F175: 262 | G175: 3149310 | H175: 218231 | I175: 6.929486141
A176: Выплата единовременного пособия при всех формах устройства детей, лишенных родительского попечения, в семью | B176: 002 | C176: 1004 | D176: 0275131 | E176: 000 | F176: 000 | G176: =G177 -> 173710 | H176: =H177 -> 0 | I176: 0
A177: Пособия, компенсации, меры социальной поддержки по публичным нормативным обязательствам | B177: 002 | C177: 1004 | D177: 0275131 | E177: 313 | F177: 000 | G177: =G178 -> 173710 | H177: =H178 -> 0 | I177: 0
A178: Пособия по социальной помощи населению | B178: 002 | C178: 1004 | D178: 0275131 | E178: 313 | F178: 262 | G178: 173710 | H178: 0 | I178: 0
A179: Другие вопросы в области социальной политики | B179: 002 | C179: 1006 | D179: 0000000 | E179: 000 | F179: 000 | G179: =G180+G188 -> 822500 | H179: =H180+H188 -> 11918.34 | I179: 1.449038298
A180: Обеспечение деятельности по профилактике безнадзорности и правонарушений несовершеннолетних, административных комиссий и определения перечня должностных лиц органов местного самоуправления, уполномоченных составлять протоколы об административных правонарушениях | B180: 002 | C180: 1006 | D180: 0211202 | E180: 000 | F180: 000 | G180: =G181+G185 -> 329000 | H180: =H181+H185 -> 4918.34 | I180: 1.49493617
A181: Расходы на выплаты персоналу государственных (муниципальных) органов | B181: 002 | C181: 1006 | D181: 0211202 | E181: 120 | F181: 000 | G181: =G182+G183+G184 -> 285999 | H181: =H182+H183+H184 -> 4000 | I181: 1.398606289
A182: Заработная плата | B182: 002 | C182: 1006 | D182: 0211202 | E182: 120 | F182: 211 | G182: 219200 | H182: 4000 | I182: 1.824817518
A183: Прочие выплаты | B183: 002 | C183: 1006 | D183: 0211202 | E183: 120 | F183: 212 | G183: 600 | H183: 0 | I183: 0
A184: Начисления на выплаты по оплате труда | B184: 002 | C184: 1006 | D184: 0211202 | E184: 120 | F184: 213 | G184: 66199 | H184: 0 | I184: 0
A185: Иные закупки товаров, работ и услуг для государственных(муниципальных) нужд | B185: 002 | C185: 1006 | D185: 0211202 | E185: 240 | F185: 000 | G185: =G186+G187 -> 43001 | H185: =H186+H187 -> 918.34 | I185: 2.135624753
A186: Услуги связи | B186: 002 | C186: 1006 | D186: 0211202 | E186: 240 | F186: 221 | G186: 18000 | H186: 918.34 | I186: 5.101888889
A187: Увеличение стоимости материальных запасов | B187: 002 | C187: 1006 | D187: 0211202 | E187: 240 | F187: 340 | G187: 25001 | H187: 0 | I187: 0
A188: Организация и осуществление деятельности по опеке и попечительству, выплата ежемесячных денежных средств на содержание и проезд ребенка, переданного на воспитание в семью опекуна (попечителя), приемную семью, вознаграждения приемным родителям | B188: 002 | C188: 1006 | D188: 0271672 | E188: 000 | F188: 000 | G188: =G189+G193 -> 493500 | H188: =H189+H193 -> 7000 | I188: 1.418439716
A189: Расходы на выплаты персоналу государственных (муниципальных) органов | B189: 002 | C189: 1006 | D189: 0271672 | E189: 120 | F189: 000 | G189: =G190+G191+G192 -> 401133 | H189: =H190+H191+H192 -> 7000 | I189: 1.745057126
A190: Заработная плата | B190: 002 | C190: 1006 | D190: 0271672 | E190: 120 | F190: 211 | G190: 307629 | H190: 7000 | I190: 2.275468178
A191: Прочие выплаты | B191: 002 | C191: 1006 | D191: 0271672 | E191: 120 | F191: 212 | G191: 600 | H191: 0 | I191: 0
A192: Начисления на выплаты по оплате труда | B192: 002 | C192: 1006 | D192: 0271672 | E192: 120 | F192: 213 | G192: 92904 | H192: 0 | I192: 0
A193: Иные закупки товаров, работ и услуг для государственных(муниципальных) нужд | B193: 002 | C193: 1006 | D193: 0271672 | E193: 240 | F193: 000 | G193: =G194+G195 -> 92367 | H193: =H194+H195 -> 0 | I193: 0
A194: Услуги связи | B194: 002 | C194: 1006 | D194: 0271672 | E194: 240 | F194: 221 | G194: 18000 | H194: 0 | I194: 0
A195: Увеличение стоимости материальных запасов | B195: 002 | C195: 1006 | D195: 0271672 | E195: 240 | F195: 340 | G195: 74367 | H195: 0 | I195: 0
A196: ФИЗИЧЕСКАЯ КУЛЬТУРА И СПОРТ | B196: 002 | C196: 1100 | D196: 0000000 | E196: 000 | F196: 000 | G196: =G197 -> 12390500 | H196: 1200000 | I196: 9.684839191
A197: Физическая культура | B197: 002 | C197: 1101 | D197: 0000000 | E197: 000 | F197: 000 | G197: 12390500 | H197: 1200000 | I197: 9.684839191
A198: Спортивно-оздоровительные комплексы и центры | B198: 002 | C198: 1101 | D198: 0291098 | E198: 000 | F198: 000 | G198: 12390500 | H198: 1200000 | I198: 9.684839191
A199: Субсидии автономным учреждениям на финансовое обеспечение государственного (муниципального) задания на оказание государственных (муниципальных) услуг (выполнение работ) | B199: 002 | C199: 1101 | D199: 0291098 | E199: 621 | F199: 000 | G199: 12390500 | H199: 1200000 | I199: 9.684839191
A200: Безвозмездные перечисления государственным и муниципальным организациям | B200: 002 | C200: 1101 | D200: 0291098 | E200: 621 | F200: 241 | G200: 12390500 | H200: 1200000 | I200: 9.684839191
... 100 more rows
